[Event "*** Titled Tuesday Blitz"]
[Site "Chess.com"]
[Date "2020.04.21"]
[Round "2"]
[White "Gareth-Bale11"]
[Black "Andrii_Prydun"]
[Result "1-0"]
[WhiteElo "2750"]
[BlackElo "2346"]
[TimeControl "180+1"]
[EndTime "10:18:03 PDT"]
[Termination "Gareth-Bale11 won by resignation"]

1. d4 {[%clk 0:03:00.9]} 1... d6 {[%clk 0:03:00]} 2. Nf3 {[%clk 0:02:59.5]} 2...
Nf6 {[%clk 0:02:58.1]} 3. c4 {[%clk 0:02:54.7]} 3... Nbd7 {[%clk 0:02:55.9]} 4.
Nc3 {[%clk 0:02:54.7]} 4... e5 {[%clk 0:02:56.2]} 5. e4 {[%clk 0:02:49]} 5...
Be7 {[%clk 0:02:55.9]} 6. Be2 {[%clk 0:02:49.3]} 6... O-O {[%clk 0:02:56.1]} 7.
O-O {[%clk 0:02:49.8]} 7... c6 {[%clk 0:02:56.7]} 8. Re1 {[%clk 0:02:49.8]} 8...
a6 {[%clk 0:02:51.1]} 9. Bg5 {[%clk 0:02:41.4]} 9... Re8 {[%clk 0:02:41.9]} 10.
Qc2 {[%clk 0:02:31.1]} 10... h6 {[%clk 0:02:24.8]} 11. Bd2 {[%clk 0:02:07.2]}
11... Bf8 {[%clk 0:02:09]} 12. Rad1 {[%clk 0:02:02.6]} 12... b5 {[%clk
0:01:48.7]} 13. dxe5 {[%clk 0:01:46.9]} 13... dxe5 {[%clk 0:01:43.6]} 14. Be3
{[%clk 0:01:41.1]} 14... Qa5 {[%clk 0:01:35]} 15. a3 {[%clk 0:01:29.8]} 15... b4
{[%clk 0:01:24.4]} 16. axb4 {[%clk 0:01:27.6]} 16... Qxb4 {[%clk 0:01:25.2]} 17.
Nh4 {[%clk 0:01:16.5]} 17... Nb6 {[%clk 0:01:12.5]} 18. Na2 {[%clk 0:01:09.1]}
18... Qa5 {[%clk 0:01:02.9]} 19. b4 {[%clk 0:01:00.8]} 19... Qa4 {[%clk
0:00:55.7]} 20. Qb2 {[%clk 0:00:59.4]} 20... Rb8 {[%clk 0:00:48.7]} 21. Rc1
{[%clk 0:00:52.4]} 21... Be6 {[%clk 0:00:37.3]} 22. Bd1 {[%clk 0:00:49.8]} 22...
Nxc4 {[%clk 0:00:20.2]} 23. Rxc4 {[%clk 0:00:47.3]} 23... Qb5 {[%clk 0:00:20.2]}
24. Rc1 {[%clk 0:00:43.5]} 24... Nxe4 {[%clk 0:00:20.3]} 25. Bf3 {[%clk
0:00:30.4]} 25... Bd5 {[%clk 0:00:09.7]} 26. Nf5 {[%clk 0:00:30.2]} 26... Qa4
{[%clk 0:00:08.2]} 27. Bxe4 {[%clk 0:00:24.3]} 27... Bxe4 {[%clk 0:00:07.3]} 28.
Nc3 {[%clk 0:00:23.3]} 28... Qxb4 {[%clk 0:00:07.8]} 29. Qxb4 {[%clk 0:00:23.2]}
29... Rxb4 {[%clk 0:00:08.7]} 30. Nxe4 {[%clk 0:00:23]} 30... Rxe4 {[%clk
0:00:09]} 31. Rxc6 {[%clk 0:00:23]} 31... g6 {[%clk 0:00:08.2]} 32. Nd6 {[%clk
0:00:19.7]} 32... Bxd6 {[%clk 0:00:05.9]} 33. Rxd6 {[%clk 0:00:20.6]} 33... a5
{[%clk 0:00:05.7]} 34. f3 {[%clk 0:00:19.5]} 34... Rc4 {[%clk 0:00:03.4]} 35.
Ra1 {[%clk 0:00:19.3]} 35... a4 {[%clk 0:00:03.3]} 36. Bxh6 {[%clk 0:00:19.4]}
36... Ra8 {[%clk 0:00:02.5]} 37. Bg5 {[%clk 0:00:19.7]} 37... f5 {[%clk
0:00:01.6]} 38. Bf6 {[%clk 0:00:19.4]} 38... Kf7 {[%clk 0:00:01.8]} 39. Bxe5
{[%clk 0:00:19.5]} 39... Rc2 {[%clk 0:00:01.9]} 40. Rf6+ {[%clk 0:00:16.9]}
40... Ke7 {[%clk 0:00:01.4]} 41. Rxg6 {[%clk 0:00:17.1]} 41... a3 {[%clk
0:00:02]} 42. f4 {[%clk 0:00:16.3]} 42... a2 {[%clk 0:00:02]} 43. h3 {[%clk
0:00:16.4]} 43... Rb8 {[%clk 0:00:01.9]} 44. Bxb8 {[%clk 0:00:15.3]} 1-0

[Event "*** Titled Tuesday Blitz"]
[Site "Chess.com"]
[Date "2020.04.21"]
[Round "2"]
[White "Efremov_Vlad"]
[Black "Oligan22"]
[Result "0-1"]
[WhiteElo "2148"]
[BlackElo "2418"]
[TimeControl "180+1"]
[EndTime "10:18:03 PDT"]
[Termination "Oligan22 won on time"]

1. c4 {[%clk 0:03:00.9]} 1... c5 {[%clk 0:02:57.7]} 2. Nf3 {[%clk 0:02:58.8]}
2... e6 {[%clk 0:02:55.4]} 3. Nc3 {[%clk 0:02:56.7]} 3... b6 {[%clk 0:02:52.6]}
4. d4 {[%clk 0:02:56.1]} 4... cxd4 {[%clk 0:02:52.7]} 5. Nxd4 {[%clk 0:02:56.3]}
5... Bb7 {[%clk 0:02:53.2]} 6. e4 {[%clk 0:02:55.6]} 6... d6 {[%clk 0:02:26.1]}
7. Be2 {[%clk 0:02:53.8]} 7... Nf6 {[%clk 0:02:25.9]} 8. f3 {[%clk 0:02:53.2]}
8... Be7 {[%clk 0:02:25.2]} 9. O-O {[%clk 0:02:52.8]} 9... O-O {[%clk
0:02:25.8]} 10. Be3 {[%clk 0:02:52.9]} 10... Nbd7 {[%clk 0:02:26.1]} 11. Rc1
{[%clk 0:02:50.2]} 11... a6 {[%clk 0:02:26.4]} 12. a3 {[%clk 0:02:50.2]} 12...
Rc8 {[%clk 0:02:25.5]} 13. b4 {[%clk 0:02:45.8]} 13... Qc7 {[%clk 0:02:25.5]}
14. Qb3 {[%clk 0:02:35.8]} 14... Qb8 {[%clk 0:02:22.8]} 15. a4 {[%clk
0:02:23.4]} 15... Rfe8 {[%clk 0:02:13.3]} 16. Kh1 {[%clk 0:02:21.5]} 16... Bd8
{[%clk 0:02:11.2]} 17. Bg1 {[%clk 0:02:15]} 17... a5 {[%clk 0:02:11.1]} 18. Ncb5
{[%clk 0:01:57.9]} 18... g6 {[%clk 0:01:53.7]} 19. bxa5 {[%clk 0:01:33.4]} 19...
bxa5 {[%clk 0:01:54.6]} 20. Nxd6 {[%clk 0:01:30.5]} 20... Nc5 {[%clk 0:01:52.5]}
21. Nxe8 {[%clk 0:01:22.6]} 21... Nxb3 {[%clk 0:01:52]} 22. Nxf6+ {[%clk
0:01:23.3]} 22... Bxf6 {[%clk 0:01:52.7]} 23. Nxb3 {[%clk 0:01:23.1]} 23... Bc6
{[%clk 0:01:50.8]} 24. Nxa5 {[%clk 0:01:21]} 24... Bxa4 {[%clk 0:01:50.7]} 25.
c5 {[%clk 0:01:13.3]} 25... Be7 {[%clk 0:01:34.5]} 26. Ba6 {[%clk 0:00:59.3]}
26... Rc7 {[%clk 0:01:29.7]} 27. Bf2 {[%clk 0:00:34.8]} 27... Qa8 {[%clk
0:01:28.5]} 28. Ra1 {[%clk 0:00:25.2]} 28... Qxa6 {[%clk 0:01:19.2]} 29. Rxa4
{[%clk 0:00:23.6]} 29... Bxc5 {[%clk 0:01:19.9]} 30. Bxc5 {[%clk 0:00:21.1]}
30... Rxc5 {[%clk 0:01:20.8]} 31. Rfa1 {[%clk 0:00:21.4]} 31... Rb5 {[%clk
0:01:02]} 32. h3 {[%clk 0:00:17.1]} 32... Qd6 {[%clk 0:00:55.7]} 33. Nc4 {[%clk
0:00:16.1]} 33... Qf4 {[%clk 0:00:51.5]} 34. Rd1 {[%clk 0:00:13.7]} 34... Rb8
{[%clk 0:00:47.4]} 35. Ra7 {[%clk 0:00:13.6]} 35... h5 {[%clk 0:00:45.6]} 36.
Nd6 {[%clk 0:00:09.8]} 36... Rd8 {[%clk 0:00:43]} 37. Ra6 {[%clk 0:00:09.9]}
37... h4 {[%clk 0:00:40.2]} 38. Kg1 {[%clk 0:00:07.4]} 38... Qe5 {[%clk
0:00:38.1]} 39. Kh1 {[%clk 0:00:07.7]} 39... Qc5 {[%clk 0:00:34.1]} 40. Rd3
{[%clk 0:00:05.5]} 40... Qc1+ {[%clk 0:00:33.3]} 41. Kh2 {[%clk 0:00:05.8]}
41... Qe1 {[%clk 0:00:32.6]} 42. Rc6 {[%clk 0:00:03.4]} 42... Qf1 {[%clk
0:00:26.9]} 43. Rc8 {[%clk 0:00:02.8]} 43... Rxc8 {[%clk 0:00:26]} 44. Nxc8
{[%clk 0:00:03.1]} 44... Qxd3 {[%clk 0:00:26.7]} 45. Ne7+ {[%clk 0:00:01.8]}
45... Kf8 {[%clk 0:00:24.7]} 46. Nxg6+ {[%clk 0:00:01.9]} 46... fxg6 {[%clk
0:00:25.6]} 47. g3 {[%clk 0:00:01.9]} 47... Qe2+ {[%clk 0:00:25.1]} 0-1

[Event "*** Titled Tuesday Blitz"]
[Site "Chess.com"]
[Date "2020.04.21"]
[Round "2"]
[White "tufferguy"]
[Black "SamuelGhimpu2003"]
[Result "0-1"]
[WhiteElo "2396"]
[BlackElo "2660"]
[TimeControl "180+1"]
[EndTime "10:18:04 PDT"]
[Termination "SamuelGhimpu2003 won on time"]

1. e4 {[%clk 0:03:00.9]} 1... d6 {[%clk 0:02:58.2]} 2. d4 {[%clk 0:02:58.2]}
2... Nf6 {[%clk 0:02:57.2]} 3. Nc3 {[%clk 0:02:57.2]} 3... g6 {[%clk 0:02:54.8]}
4. f4 {[%clk 0:02:55.3]} 4... Bg7 {[%clk 0:02:55.1]} 5. Bd3 {[%clk 0:02:42.9]}
5... O-O {[%clk 0:02:55.3]} 6. Nf3 {[%clk 0:02:42.4]} 6... Nc6 {[%clk
0:02:55.4]} 7. e5 {[%clk 0:02:36.1]} 7... dxe5 {[%clk 0:02:54.1]} 8. fxe5 {[%clk
0:02:36.2]} 8... Nd5 {[%clk 0:02:54.2]} 9. Nxd5 {[%clk 0:02:33.7]} 9... Qxd5
{[%clk 0:02:55.1]} 10. c3 {[%clk 0:02:33.1]} 10... f6 {[%clk 0:02:38.9]} 11. Qe2
{[%clk 0:02:28.3]} 11... Kh8 {[%clk 0:02:36.8]} 12. exf6 {[%clk 0:02:08.2]}
12... exf6 {[%clk 0:02:36.7]} 13. O-O {[%clk 0:02:07.7]} 13... Be6 {[%clk
0:02:32.7]} 14. c4 {[%clk 0:02:00.5]} 14... Qd6 {[%clk 0:02:02.3]} 15. d5 {[%clk
0:01:55.2]} 15... Nb4 {[%clk 0:02:02.4]} 16. Qxe6 {[%clk 0:01:28.5]} 16... Qxe6
{[%clk 0:01:55.6]} 17. dxe6 {[%clk 0:01:29.4]} 17... Nxd3 {[%clk 0:01:55.9]} 18.
Rd1 {[%clk 0:01:26]} 18... Nc5 {[%clk 0:01:44.4]} 19. e7 {[%clk 0:01:14.4]}
19... Rfe8 {[%clk 0:01:44.5]} 20. Be3 {[%clk 0:01:13.3]} 20... Ne6 {[%clk
0:01:41.4]} 21. Rd7 {[%clk 0:01:11.2]} 21... Kg8 {[%clk 0:01:41.6]} 22. Re1
{[%clk 0:00:35.7]} 22... Kf7 {[%clk 0:01:38.3]} 23. Nd4 {[%clk 0:00:30.5]} 23...
Rac8 {[%clk 0:01:01.3]} 24. b4 {[%clk 0:00:16.1]} 24... a6 {[%clk 0:00:58.2]}
25. Bf2 {[%clk 0:00:05.9]} 25... Nxd4 {[%clk 0:00:53.5]} 26. Bxd4 {[%clk
0:00:06.8]} 26... Bh6 {[%clk 0:00:54.2]} 27. Rf1 {[%clk 0:00:04.9]} 27... Bg5
{[%clk 0:00:52.2]} 28. g3 {[%clk 0:00:03.8]} 28... f5 {[%clk 0:00:51.2]} 29. h4
{[%clk 0:00:03.1]} 29... Rxe7 {[%clk 0:00:50.5]} 30. Rxe7+ {[%clk 0:00:02.5]}
30... Bxe7 {[%clk 0:00:51.4]} 31. g4 {[%clk 0:00:02.4]} 31... Rd8 {[%clk
0:00:43.4]} 32. Be5 {[%clk 0:00:02.6]} 32... c6 {[%clk 0:00:41.1]} 33. gxf5
{[%clk 0:00:02.5]} 33... gxf5 {[%clk 0:00:42]} 34. Rxf5+ {[%clk 0:00:02.6]}
34... Ke6 {[%clk 0:00:41.6]} 35. Rh5 {[%clk 0:00:02.8]} 35... Bxb4 {[%clk
0:00:33.4]} 36. Bf4 {[%clk 0:00:01.6]} 36... Rd4 {[%clk 0:00:31]} 37. Rh6+
{[%clk 0:00:02.5]} 37... Kf5 {[%clk 0:00:30.5]} 38. Bg5 {[%clk 0:00:03.4]} 38...
Rd7 {[%clk 0:00:28]} 39. Rf6+ {[%clk 0:00:03.2]} 39... Ke4 {[%clk 0:00:28]} 40.
Kg2 {[%clk 0:00:02.9]} 40... Kd3 {[%clk 0:00:27.7]} 41. c5 {[%clk 0:00:02.1]}
41... Bxc5 {[%clk 0:00:25.9]} 42. Rf3+ {[%clk 0:00:02.6]} 42... Kc4 {[%clk
0:00:25.6]} 43. Kg3 {[%clk 0:00:03]} 43... b5 {[%clk 0:00:22.3]} 44. Kg4 {[%clk
0:00:03.2]} 44... b4 {[%clk 0:00:21.1]} 45. Bf6 {[%clk 0:00:03.2]} 45... Bd4
{[%clk 0:00:20.1]} 46. Rf4 {[%clk 0:00:03.3]} 46... c5 {[%clk 0:00:20.2]} 47.
Kf5 {[%clk 0:00:02.5]} 47... Kd5 {[%clk 0:00:20.3]} 0-1

[Event "*** Titled Tuesday Blitz"]
[Site "Chess.com"]
[Date "2020.04.21"]
[Round "2"]
[White "Anaj14"]
[Black "english_player_89"]
[Result "0-1"]
[WhiteElo "2080"]
[BlackElo "2417"]
[TimeControl "180+1"]
[EndTime "10:18:04 PDT"]
[Termination "english_player_89 won by resignation"]

1. Nf3 {[%clk 0:03:00.9]} 1... Nf6 {[%clk 0:02:59.7]} 2. g3 {[%clk 0:03:00.8]}
2... g6 {[%clk 0:02:59.7]} 3. Bg2 {[%clk 0:03:01.3]} 3... Bg7 {[%clk 0:03:00.6]}
4. O-O {[%clk 0:03:01.8]} 4... O-O {[%clk 0:03:01.2]} 5. c4 {[%clk 0:03:02]}
5... d6 {[%clk 0:03:01.6]} 6. d3 {[%clk 0:03:01.4]} 6... Nc6 {[%clk 0:03:01.8]}
7. Nc3 {[%clk 0:03:01.7]} 7... e5 {[%clk 0:03:00.6]} 8. Rb1 {[%clk 0:03:01.9]}
8... a5 {[%clk 0:02:59.7]} 9. a3 {[%clk 0:03:02.1]} 9... Nh5 {[%clk 0:02:55.1]}
10. b4 {[%clk 0:02:59]} 10... f5 {[%clk 0:02:51.9]} 11. Qb3 {[%clk 0:02:54.2]}
11... Kh8 {[%clk 0:02:40.3]} 12. b5 {[%clk 0:02:41.7]} 12... Ne7 {[%clk
0:02:39.4]} 13. a4 {[%clk 0:02:37.7]} 13... f4 {[%clk 0:02:36.8]} 14. Ne4 {[%clk
0:02:29.6]} 14... b6 {[%clk 0:02:33.1]} 15. Bb2 {[%clk 0:02:09.1]} 15... h6
{[%clk 0:02:31.2]} 16. Rbd1 {[%clk 0:02:04.3]} 16... Bb7 {[%clk 0:02:23.7]} 17.
g4 {[%clk 0:01:45.4]} 17... Bxe4 {[%clk 0:02:12.4]} 18. dxe4 {[%clk 0:01:42.6]}
18... Nf6 {[%clk 0:02:07.9]} 19. Nxe5 {[%clk 0:01:40.3]} 19... Qc8 {[%clk
0:02:07.2]} 20. Nd3 {[%clk 0:01:25.7]} 20... Qxg4 {[%clk 0:02:03.3]} 21. h3
{[%clk 0:01:21.4]} 21... Qg5 {[%clk 0:01:59.8]} 22. Bc1 {[%clk 0:01:12.9]} 22...
Nxe4 {[%clk 0:01:57]} 23. Kh1 {[%clk 0:01:02.4]} 23... Nc5 {[%clk 0:01:42.7]}
24. Nxc5 {[%clk 0:01:00.3]} 24... bxc5 {[%clk 0:01:43.6]} 25. Bxa8 {[%clk
0:00:57.9]} 25... Rxa8 {[%clk 0:01:42.7]} 26. Qf3 {[%clk 0:00:55.8]} 26... Rf8
{[%clk 0:01:41.2]} 27. Rg1 {[%clk 0:00:55.6]} 27... Qf6 {[%clk 0:01:39.9]} 28.
Rd2 {[%clk 0:00:51.8]} 28... g5 {[%clk 0:01:38]} 29. Bb2 {[%clk 0:00:51.6]}
29... Qf7 {[%clk 0:01:36.1]} 30. Bxg7+ {[%clk 0:00:52.1]} 30... Qxg7 {[%clk
0:01:37]} 31. Rc2 {[%clk 0:00:48.1]} 31... Ng6 {[%clk 0:01:36.4]} 32. b6 {[%clk
0:00:42.2]} 32... cxb6 {[%clk 0:01:32.7]} 33. Qc6 {[%clk 0:00:42.1]} 33... Qf6
{[%clk 0:01:22.2]} 34. Rd2 {[%clk 0:00:40.9]} 34... Qf5 {[%clk 0:01:19.8]} 35.
Qf3 {[%clk 0:00:32]} 35... Ne5 {[%clk 0:01:18.7]} 36. Qg2 {[%clk 0:00:29.6]}
36... Nxc4 {[%clk 0:01:16.5]} 37. Rd5 {[%clk 0:00:29.5]} 37... Qf6 {[%clk
0:01:09.3]} 38. Qe4 {[%clk 0:00:27.4]} 38... Ne5 {[%clk 0:01:07.8]} 39. Rgd1
{[%clk 0:00:26.9]} 39... Rd8 {[%clk 0:00:59.9]} 40. Rxe5 {[%clk 0:00:24]} 40...
dxe5 {[%clk 0:00:59.6]} 41. Rxd8+ {[%clk 0:00:23.4]} 41... Qxd8 {[%clk 0:01:00]}
42. Qxe5+ {[%clk 0:00:23.7]} 42... Kh7 {[%clk 0:01:00]} 43. Qf5+ {[%clk
0:00:22.8]} 43... Kg7 {[%clk 0:01:00.1]} 44. Qe5+ {[%clk 0:00:22.9]} 44... Qf6
{[%clk 0:01:00.3]} 45. Qc7+ {[%clk 0:00:23.1]} 45... Kg6 {[%clk 0:01:00.2]} 46.
Kg2 {[%clk 0:00:21.5]} 46... h5 {[%clk 0:00:58.9]} 47. Qc8 {[%clk 0:00:20.6]}
47... Kh6 {[%clk 0:00:51.6]} 48. f3 {[%clk 0:00:18]} 48... Qd6 {[%clk
0:00:47.8]} 49. Qh8+ {[%clk 0:00:17.7]} 49... Kg6 {[%clk 0:00:47.3]} 50. Qg8+
{[%clk 0:00:18.3]} 50... Kf5 {[%clk 0:00:47.4]} 51. Qf7+ {[%clk 0:00:17.6]}
51... Qf6 {[%clk 0:00:45.4]} 52. Qxh5 {[%clk 0:00:17]} 52... c4 {[%clk
0:00:42.6]} 53. Qg4+ {[%clk 0:00:15.7]} 53... Ke5 {[%clk 0:00:42.4]} 54. Qc8
{[%clk 0:00:15.7]} 54... Kd4 {[%clk 0:00:42.4]} 55. Qd7+ {[%clk 0:00:14.7]}
55... Kc3 {[%clk 0:00:42.2]} 56. Qd1 {[%clk 0:00:14.1]} 56... Kb4 {[%clk
0:00:41.9]} 57. Qd2+ {[%clk 0:00:14]} 57... Kxa4 {[%clk 0:00:40.8]} 58. Qc2+
{[%clk 0:00:13.2]} 58... Kb4 {[%clk 0:00:40.8]} 59. Kf2 {[%clk 0:00:13.6]} 59...
a4 {[%clk 0:00:40.4]} 60. Qb2+ {[%clk 0:00:13.3]} 60... Qxb2 {[%clk 0:00:39.9]}
0-1

[Event "*** Titled Tuesday Blitz"]
[Site "Chess.com"]
[Date "2020.04.21"]
[Round "2"]
[White "TregubovP"]
[Black "GMAkobianSTL"]
[Result "1-0"]
[WhiteElo "2580"]
[BlackElo "2792"]
[TimeControl "180+1"]
[EndTime "10:18:05 PDT"]
[Termination "TregubovP won on time"]

1. e4 {[%clk 0:03:00.9]} 1... d6 {[%clk 0:02:58]} 2. d4 {[%clk 0:02:59.8]} 2...
Nf6 {[%clk 0:02:57.8]} 3. Nc3 {[%clk 0:02:59]} 3... c6 {[%clk 0:02:57.9]} 4. Nf3
{[%clk 0:02:57.6]} 4... Bg4 {[%clk 0:02:57.5]} 5. Be2 {[%clk 0:02:56]} 5... e6
{[%clk 0:02:57.5]} 6. h3 {[%clk 0:02:55.1]} 6... Bh5 {[%clk 0:02:57.2]} 7. O-O
{[%clk 0:02:49.2]} 7... d5 {[%clk 0:02:57.4]} 8. Ne5 {[%clk 0:02:34.9]} 8...
Bxe2 {[%clk 0:02:56.3]} 9. Qxe2 {[%clk 0:02:34.2]} 9... Nbd7 {[%clk 0:02:54.6]}
10. exd5 {[%clk 0:02:30]} 10... cxd5 {[%clk 0:02:53]} 11. f4 {[%clk 0:02:15.2]}
11... Bb4 {[%clk 0:02:51.6]} 12. f5 {[%clk 0:02:12.8]} 12... O-O {[%clk
0:02:49.9]} 13. fxe6 {[%clk 0:02:12.2]} 13... fxe6 {[%clk 0:02:49]} 14. Nd3
{[%clk 0:02:11]} 14... Bxc3 {[%clk 0:02:48.2]} 15. Qxe6+ {[%clk 0:02:10.9]}
15... Kh8 {[%clk 0:02:46.5]} 16. bxc3 {[%clk 0:02:11.4]} 16... Qc7 {[%clk
0:02:42]} 17. Ne5 {[%clk 0:01:34.2]} 17... Nxe5 {[%clk 0:02:35.5]} 18. dxe5
{[%clk 0:01:33.3]} 18... Qc5+ {[%clk 0:02:16.2]} 19. Kh2 {[%clk 0:01:30.2]}
19... Ne4 {[%clk 0:02:15.9]} 20. Bf4 {[%clk 0:01:15]} 20... Rae8 {[%clk
0:02:13.7]} 21. Qd7 {[%clk 0:01:13.2]} 21... Qc6 {[%clk 0:01:49.8]} 22. Qxc6
{[%clk 0:01:09.3]} 22... bxc6 {[%clk 0:01:49.7]} 23. c4 {[%clk 0:01:09]} 23...
d4 {[%clk 0:01:17.7]} 24. Rae1 {[%clk 0:01:07.7]} 24... Nc5 {[%clk 0:01:17.4]}
25. Bc1 {[%clk 0:00:52]} 25... Rxf1 {[%clk 0:01:13.7]} 26. Rxf1 {[%clk
0:00:51.5]} 26... Kg8 {[%clk 0:01:13.6]} 27. Re1 {[%clk 0:00:43.5]} 27... d3
{[%clk 0:01:02.1]} 28. Ba3 {[%clk 0:00:22]} 28... d2 {[%clk 0:01:01.5]} 29. Rd1
{[%clk 0:00:22]} 29... Ne4 {[%clk 0:01:01.5]} 30. Bd6 {[%clk 0:00:19.8]} 30...
Kf7 {[%clk 0:00:48]} 31. g4 {[%clk 0:00:19.6]} 31... c5 {[%clk 0:00:27.3]} 32.
Kg2 {[%clk 0:00:19.4]} 32... Nxd6 {[%clk 0:00:14.3]} 33. exd6 {[%clk 0:00:18.4]}
33... Re2+ {[%clk 0:00:13.6]} 34. Kf3 {[%clk 0:00:18.2]} 34... Rh2 {[%clk
0:00:13.5]} 35. Kg3 {[%clk 0:00:18.4]} 35... Re2 {[%clk 0:00:12.9]} 36. Kf3
{[%clk 0:00:18.9]} 36... Rh2 {[%clk 0:00:12.3]} 37. Ke3 {[%clk 0:00:13.4]} 37...
Rxh3+ {[%clk 0:00:10.9]} 38. Ke4 {[%clk 0:00:13.6]} 38... Ke6 {[%clk 0:00:10.1]}
39. Rxd2 {[%clk 0:00:13.1]} 39... Kd7 {[%clk 0:00:10.7]} 40. Kd5 {[%clk
0:00:12.1]} 40... Ra3 {[%clk 0:00:09.3]} 41. Kxc5 {[%clk 0:00:11.6]} 41... Rxa2
{[%clk 0:00:08.3]} 42. Kd5 {[%clk 0:00:11.8]} 42... Ra4 {[%clk 0:00:04.4]} 43.
Re2 {[%clk 0:00:11.7]} 43... a5 {[%clk 0:00:02.9]} 44. Re7+ {[%clk 0:00:11.7]}
44... Kd8 {[%clk 0:00:02.6]} 45. Rxg7 {[%clk 0:00:11.7]} 1-0

[Event "*** Titled Tuesday Blitz"]
[Site "Chess.com"]
[Date "2020.04.21"]
[Round "2"]
[White "LilRag"]
[Black "CrgKrishna"]
[Result "0-1"]
[WhiteElo "2339"]
[BlackElo "2638"]
[TimeControl "180+1"]
[EndTime "10:18:05 PDT"]
[Termination "CrgKrishna won by resignation"]

1. Nf3 {[%clk 0:03:00.9]} 1... d5 {[%clk 0:02:59]} 2. e3 {[%clk 0:03:00.3]} 2...
Nf6 {[%clk 0:02:58.9]} 3. d4 {[%clk 0:03:00]} 3... c6 {[%clk 0:02:54]} 4. c4
{[%clk 0:02:57.7]} 4... Bf5 {[%clk 0:02:52]} 5. Nc3 {[%clk 0:02:57.3]} 5... a6
{[%clk 0:02:51.5]} 6. Bd3 {[%clk 0:02:57.6]} 6... Bg6 {[%clk 0:02:49.1]} 7. Ne5
{[%clk 0:02:55.8]} 7... e6 {[%clk 0:02:43.5]} 8. f4 {[%clk 0:02:53.9]} 8... Nbd7
{[%clk 0:02:38.4]} 9. c5 {[%clk 0:02:50.9]} 9... Nxe5 {[%clk 0:02:31.4]} 10.
fxe5 {[%clk 0:02:50]} 10... Nd7 {[%clk 0:02:31.5]} 11. O-O {[%clk 0:02:47.3]}
11... Be7 {[%clk 0:02:16.4]} 12. Bxg6 {[%clk 0:02:42.4]} 12... hxg6 {[%clk
0:02:16.2]} 13. Bd2 {[%clk 0:02:40.7]} 13... Qc7 {[%clk 0:01:57]} 14. Qg4 {[%clk
0:02:33.5]} 14... Rh5 {[%clk 0:01:19.5]} 15. Ne2 {[%clk 0:02:15.5]} 15... Nf8
{[%clk 0:00:48.3]} 16. Ng3 {[%clk 0:01:54.8]} 16... Rh4 {[%clk 0:00:47.8]} 17.
Qf3 {[%clk 0:01:23.6]} 17... Bg5 {[%clk 0:00:47.8]} 18. Rad1 {[%clk 0:01:19]}
18... Nh7 {[%clk 0:00:46.5]} 19. Qf2 {[%clk 0:00:59.6]} 19... Kf8 {[%clk
0:00:44.8]} 20. Rfe1 {[%clk 0:00:53.8]} 20... Kg8 {[%clk 0:00:44.6]} 21. e4
{[%clk 0:00:53]} 21... Rd8 {[%clk 0:00:33.6]} 22. exd5 {[%clk 0:00:45.6]} 22...
Rxd5 {[%clk 0:00:34.5]} 23. Bxg5 {[%clk 0:00:45.6]} 23... Nxg5 {[%clk
0:00:34.5]} 24. Nf5 {[%clk 0:00:40.9]} 24... Rg4 {[%clk 0:00:34]} 25. Ng3 {[%clk
0:00:29.1]} 25... Qd8 {[%clk 0:00:33.9]} 26. h3 {[%clk 0:00:28.2]} 26... Rgxd4
{[%clk 0:00:31.5]} 27. Rxd4 {[%clk 0:00:24.2]} 27... Rxd4 {[%clk 0:00:32.4]} 28.
Rf1 {[%clk 0:00:23.9]} 28... Rd2 {[%clk 0:00:31.3]} 29. Qf4 {[%clk 0:00:23.3]}
29... Qd4+ {[%clk 0:00:30.9]} 30. Qxd4 {[%clk 0:00:23.4]} 30... Rxd4 {[%clk
0:00:31.8]} 31. Rf2 {[%clk 0:00:21.7]} 31... Ne4 {[%clk 0:00:29.5]} 32. Nxe4
{[%clk 0:00:21.6]} 32... Rxe4 {[%clk 0:00:30.4]} 33. Rd2 {[%clk 0:00:22.3]}
33... Rxe5 {[%clk 0:00:30.6]} 34. Rd8+ {[%clk 0:00:23]} 34... Kh7 {[%clk
0:00:30.1]} 35. Rd7 {[%clk 0:00:23.7]} 35... Rxc5 {[%clk 0:00:29.3]} 36. Rxb7
{[%clk 0:00:23.9]} 36... f5 {[%clk 0:00:28.1]} 37. Re7 {[%clk 0:00:23.7]} 37...
e5 {[%clk 0:00:27.1]} 38. b4 {[%clk 0:00:23.2]} 38... Rb5 {[%clk 0:00:24.3]} 39.
a3 {[%clk 0:00:22.7]} 39... a5 {[%clk 0:00:24.7]} 40. Rc7 {[%clk 0:00:18.4]}
40... axb4 {[%clk 0:00:24]} 41. axb4 {[%clk 0:00:19]} 41... Rxb4 {[%clk
0:00:23.9]} 42. Rxc6 {[%clk 0:00:19.9]} 42... Kh6 {[%clk 0:00:23.7]} 43. Re6
{[%clk 0:00:19.7]} 43... e4 {[%clk 0:00:23.7]} 44. Re8 {[%clk 0:00:20.2]} 44...
Kg5 {[%clk 0:00:23.3]} 45. Kh2 {[%clk 0:00:20.2]} 45... f4 {[%clk 0:00:22.9]}
46. Rf8 {[%clk 0:00:19.7]} 46... e3 {[%clk 0:00:23]} 47. Re8 {[%clk 0:00:19.8]}
47... Kf5 {[%clk 0:00:22.8]} 48. Rf8+ {[%clk 0:00:19.7]} 48... Ke5 {[%clk
0:00:22.9]} 49. Re8+ {[%clk 0:00:20.2]} 49... Kd4 {[%clk 0:00:23]} 50. g3 {[%clk
0:00:19.7]} 50... f3 {[%clk 0:00:21.5]} 51. g4 {[%clk 0:00:20]} 51... e2 {[%clk
0:00:21.2]} 52. Kg3 {[%clk 0:00:20.1]} 52... Rb1 {[%clk 0:00:21]} 53. Kf2 {[%clk
0:00:19.5]} 53... Rf1+ {[%clk 0:00:20.6]} 0-1